[Event "44th Chess Olympiad Women 2022"]
[Site "Chennai"]
[Date "2022.08.02"]
[Round "5.37"]
[White "Lam, Ka Yan"]
[Black "Ramirez Gonzalez, Maria Jose"]
[Result "0-1"]
[ECO "C60"]
[WhiteElo "1223"]
[BlackElo "1809"]
[Annotator "NA RC COMBH"]
[PlyCount "112"]
[EventDate "2022.07.29"]
[EventType "team-tourn"]
[EventCountry "IND"]
[SourceTitle "playchess.com"]
[Source "ChessBase"]
[SourceQuality "1"]
[WhiteTeam "Hong Kong"]
[BlackTeam "Costa Rica"]
[WhiteTeamCountry "HKG"]
[BlackTeamCountry "CRI"]
[TimeControl "40/5400+30:1800+30"]

1. e4 {[%emt 0:00:09]} e5 {[%emt 0:00:05]} 2. Nf3 {[%emt 0:00:11]} Nc6 {[%emt 0:00:14]} 3. Bb5 {[%emt 0:00:25]} Nge7 {[%emt 0:00:25]} 4. d3 {[%emt 0:03:16]} g6 {[%emt 0:00:45]} 5. Nc3 {[%emt 0:01:37]} Bg7 {[%emt 0:01:35]} 6. Bg5 {[%emt 0:02:58]} h6 {[%emt 0:00:29]} 7. Be3 {[%emt 0:00:41]} O-O {[%emt 0:00:22]} 8. Qe2 {[%emt 0:02:56]} d5 {[%emt 0:01:21]} 9. exd5 {[%emt 0:01:55]} Nxd5 {[%emt 0:01:00]} 10. Nxd5 {[%emt 0:01:59]} Qxd5 {[%emt 0:00:12]} 11. Bc4 {[%emt 0:00:24]} Qd6 {[%emt 0:00:31]} 12. Nd2 {[%emt 0:09:01]} Nd4 {[%emt 0:03:49]} 13. Bxd4 {[%emt 0:03:15]} exd4 {[%emt 0:00:55]} 14. Ne4 {[%emt 0:02:28]} Qb4+ {[%emt 0:01:36]} 15. Qd2 {[%emt 0:03:57]} Qxb2 {[%emt 0:03:38]} 16. O-O {[%emt 0:00:22]} Qb6 {[%emt 0:01:59]} 17. Rab1 {[%emt 0:04:45]} Qc6 {[%emt 0:03:49]} 18. Qb4 {[%emt 0:05:44]} a6 {[%emt 0:02:41]} 19. Qc5 {[%emt 0:07:24]} Qxc5 {[%emt 0:04:27]} 20. Nxc5 {[%emt 0:00:09]} b6 {[%emt 0:01:11]} 21. Ne4 {[%emt 0:00:42]} Bb7 {[%emt 0:00:41]} 22. Rfe1 {[%emt 0:01:50]} Rab8 {[%emt 0:03:19]} 23. a4 {[%emt 0:03:02]} Rfe8 {[%emt 0:01:30]} 24. f3 {[%emt 0:00:48]} Re5 {[%emt 0:16:31]} 25. Kf2 {[%emt 0:05:02]} Kf8 {[%emt 0:02:09]} 26. Nd2 {[%emt 0:04:09]} Rbe8 {[%emt 0:04:38]} 27. Ba2 {[%emt 0:06:00]} Bc6 {[%emt 0:04:31]} 28. Bb3 {[%emt 0:03:55]} f5 {[%emt 0:06:02]} 29. Nc4 {[%emt 0:02:11]} Rxe1 {[%emt 0:06:09]} 30. Rxe1 {[%emt 0:00:09]} Rxe1 {[%emt 0:00:13]} 31. Kxe1 {[%emt 0:00:06]} b5 {[%emt 0:00:51]} 32. Na5 {[%emt 0:04:34]} Ba8 {[%emt 0:01:41]} 33. Kf2 {[%emt 0:04:46]} Ke7 {[%emt 0:01:18]} 34. h3 {[%emt 0:02:10]} Be5 {[%emt 0:05:55]} 35. axb5 {[%emt 0:04:33]} axb5 {[%emt 0:00:02]} 36. Ba2 {[%emt 0:01:54]} c5 {[%emt 0:05:57]} 37. Ke2 {[%emt 0:02:44]} h5 {[%emt 0:01:24]} 38. Bg8 {[%emt 0:00:56]} h4 {[%emt 0:01:11]} 39. Bh7 {[%emt 0:01:18]} Kf6 {[%emt 0:00:14]} 40. Bg8 {[%emt 0:00:15]} g5 {[%emt 0:01:10]} 41. Kf2 {[%emt 0:30:24]} Bd6 {[%emt 0:32:37]} 42. Bh7 {[%emt 0:01:03]} Bd5 {[%emt 0:00:43]} 43. Nb3 {[%emt 0:02:27]} Be6 {[%emt 0:02:20]} 44. Nc1 {[%emt 0:01:43]} Kg7 {[%emt 0:00:50]} 45. Bxf5 {[%emt 0:00:15]} Bxf5 {[%emt 0:00:02]} 46. Ne2 {[%emt 0:00:29]} Kf6 {[%emt 0:00:35]} 47. Ke1 {[%emt 0:00:17]} Ke5 {[%emt 0:00:41]} 48. Kd2 {[%emt 0:00:11]} c4 {[%emt 0:00:26]} 49. dxc4 {[%emt 0:01:36]} bxc4 {[%emt 0:00:27]} 50. c3 {[%emt 0:00:25]} dxc3+ {[%emt 0:00:48]} 51. Kxc3 {[%emt 0:00:16]} Bd3 {[%emt 0:00:24]} 52. Nc1 {[%emt 0:00:48]} Bf1 {[%emt 0:03:08]} 53. Kd2 {[%emt 0:00:00]} Ba3 {[%emt 0:00:00]} 54. Ne2 {[%emt 0:00:00]} Bxe2 {[%emt 0:00:00]} 55. Kxe2 {[%emt 0:00:00]} c3 {[%emt 0:00:00]} 56. Kd3 {[%emt 0:00:00]} Bb2 {[%emt 0:00:00]} 0-1

[Event "44th Chess Olympiad Women 2022"]
[Site "Chennai"]
[Date "2022.08.02"]
[Round "5.38"]
[White "Noshin, Anjum"]
[Black "Clarke, Adani"]
[Result "1-0"]
[ECO "C18"]
[WhiteElo "2027"]
[BlackElo "1812"]
[Annotator "NA RC"]
[PlyCount "151"]
[EventDate "2022.07.29"]
[EventType "team-tourn"]
[EventCountry "IND"]
[SourceTitle "playchess.com"]
[Source "ChessBase"]
[SourceQuality "1"]
[WhiteTeam "Bangladesh"]
[BlackTeam "Jamaica"]
[WhiteTeamCountry "BAN"]
[BlackTeamCountry "JAM"]
[TimeControl "40/5400+30:1800+30"]

1. e4 {[%emt 0:00:05]} e6 {[%emt 0:00:08]} 2. d4 {[%emt 0:00:05]} d5 {[%emt 0:00:03]} 3. Nc3 {[%emt 0:00:06]} Bb4 {[%emt 0:00:10]} 4. e5 {[%emt 0:00:04]} c5 {[%emt 0:00:10]} 5. a3 {[%emt 0:00:06]} Bxc3+ {[%emt 0:00:05]} 6. bxc3 {[%emt 0:00:06]} Qa5 {[%emt 0:00:18]} 7. Bd2 {[%emt 0:00:10]} Qa4 {[%emt 0:00:17]} 8. Qg4 {[%emt 0:02:05]} Kf8 {[%emt 0:00:27]} 9. Nf3 {[%emt 0:00:51]} Nc6 {[%emt 0:05:51]} 10. Be2 {[%emt 0:03:33]} Nge7 {[%emt 0:07:45]} 11. O-O {[%emt 0:02:31]} Qxc2 {[%emt 0:01:20]} 12. dxc5 {[%emt 0:09:58]} Ng6 {[%emt 0:02:24]} 13. Qg5 {[%emt 0:12:54]} h6 {[%emt 0:02:36]} 14. Qe3 {[%emt 0:02:25]} Qe4 {[%emt 0:04:43]} 15. Rfd1 {[%emt 0:09:46]} Qxe3 {[%emt 0:04:28]} 16. Bxe3 {[%emt 0:00:29]} Ncxe5 {[%emt 0:00:23]} 17. Nxe5 {[%emt 0:00:33]} Nxe5 {[%emt 0:00:08]} 18. c4 {[%emt 0:00:12]} f6 {[%emt 0:02:13]} 19. Rab1 {[%emt 0:04:48]} Ke7 {[%emt 0:05:50]} 20. cxd5 {[%emt 0:00:47]} exd5 {[%emt 0:00:08]} 21. Rxd5 {[%emt 0:00:14]} Rd8 {[%emt 0:00:43]} 22. Rxd8 {[%emt 0:02:04]} Kxd8 {[%emt 0:00:07]} 23. Bf4 {[%emt 0:12:29]} b6 {[%emt 0:28:43]} 24. Bxe5 {[%emt 0:05:43]} fxe5 {[%emt 0:00:08]} 25. Bf3 {[%emt 0:00:03]} Rb8 {[%emt 0:00:34]} 26. c6 {[%emt 0:00:14]} Kc7 {[%emt 0:01:14]} 27. Re1 {[%emt 0:02:11]} Kd6 {[%emt 0:01:51]} 28. Rd1+ {[%emt 0:06:03]} Kc7 {[%emt 0:00:45]} 29. Rd5 {[%emt 0:00:41]} Kxc6 {[%emt 0:01:40]} 30. Ra5+ {[%emt 0:00:10]} Kd6 {[%emt 0:01:57]} 31. Rxa7 {[%emt 0:00:07]} Bd7 {[%emt 0:00:40]} 32. h3 {[%emt 0:06:18]} Rc8 {[%emt 0:05:32]} 33. Rb7 {[%emt 0:05:04]} Rc1+ {[%emt 0:00:14]} 34. Kh2 {[%emt 0:00:03]} Rb1 {[%emt 0:00:18]} 35. Bg4 {[%emt 0:01:56]} Bxg4 {[%emt 0:07:15]} 36. hxg4 {[%emt 0:00:06]} Rb2 {[%emt 0:00:12]} 37. f3 {[%emt 0:05:21]} Ke6 {[%emt 0:03:10]} 38. Rxg7 {[%emt 0:00:29]} Kf6 {[%emt 0:00:04]} 39. Ra7 {[%emt 0:01:56]} Rc2 {[%emt 0:04:57]} 40. Ra6 {[%emt 0:02:28]} Rb2 {[%emt 0:04:41]} 41. Kg3 {[%emt 0:31:07]} Rb1 {[%emt 0:31:08]} 42. a4 {[%emt 0:00:46]} Kg5 {[%emt 0:02:03]} 43. Ra8 {[%emt 0:00:09]} Kf6 {[%emt 0:00:24]} 44. Rf8+ {[%emt 0:02:15]} Kg7 {[%emt 0:00:00]} 45. Rf5 {[%emt 0:00:00]} Re1 {[%emt 0:00:00]} 46. Kf2 {[%emt 0:00:00]} Ra1 {[%emt 0:00:00]} 47. Rxe5 {[%emt 0:00:00]} Rxa4 {[%emt 0:00:00]} 48. Rb5 {[%emt 0:00:00]} Ra6 {[%emt 0:00:00]} 49. Kg3 {[%emt 0:00:00]} Kf6 {[%emt 0:00:00]} 50. Kh4 {[%emt 0:00:00]} Kg7 {[%emt 0:00:00]} 51. g5 {[%emt 0:00:00]} Ra4+ {[%emt 0:00:00]} 52. Kg3 {[%emt 0:00:00]} hxg5 {[%emt 0:00:00]} 53. Rxg5+ {[%emt 0:00:00]} Kf7 {[%emt 0:00:00]} 54. Rb5 {[%emt 0:00:00]} Ra6 {[%emt 0:00:00]} 55. Kg4 {[%emt 0:00:00]} Kg7 {[%emt 0:00:00]} 56. Kf5 {[%emt 0:00:00]} Kf7 {[%emt 0:00:00]} 57. g4 {[%emt 0:00:00]} Kg7 {[%emt 0:00:00]} 58. f4 {[%emt 0:00:00]} Kf7 {[%emt 0:00:18]} 59. g5 {[%emt 0:00:00]} Kg7 {[%emt 0:00:26]} 60. Ke5 {[%emt 0:00:00]} Kg6 {[%emt 0:01:23]} 61. Rd5 {[%emt 0:00:00]} Kf7 {[%emt 0:01:58]} 62. f5 {[%emt 0:00:00]} Ra1 {[%emt 0:00:46]} 63. Rd7+ {[%emt 0:00:00]} Ke8 {[%emt 0:02:07]} 64. Rb7 {[%emt 0:00:00]} Rc1 {[%emt 0:03:48]} 65. Rxb6 {[%emt 0:00:00]} Rc7 {[%emt 0:00:37]} 66. f6 {[%emt 0:00:00]} Kf7 {[%emt 0:00:37]} 67. Rd6 {[%emt 0:00:00]} Rc5+ {[%emt 0:03:14]} 68. Rd5 {[%emt 0:00:00]} Rc7 {[%emt 0:00:01]} 69. Kf5 {[%emt 0:00:00]} Rb7 {[%emt 0:01:16]} 70. g6+ {[%emt 0:00:00]} Ke8 {[%emt 0:00:15]} 71. Ke6 {[%emt 0:00:00]} Rb8 {[%emt 0:00:38]} 72. g7 {[%emt 0:00:00]} Rb6+ {[%emt 0:00:24]} 73. Rd6 {[%emt 0:00:00]} Rxd6+ {[%emt 0:00:38]} 74. Kxd6 {[%emt 0:00:00]} Kf7 {[%emt 0:00:06]} 75. Kd7 {[%emt 0:00:00]} Kg8 {[%emt 0:00:14]} 76. Ke7 {[%emt 0:00:00]} 1-0

[Event "44th Chess Olympiad Women 2022"]
[Site "Chennai"]
[Date "2022.08.02"]
[Round "5.38"]
[White "Miller, Rachel"]
[Black "Sultana, Sharmin Shirin"]
[Result "0-1"]
[ECO "C48"]
[WhiteElo "1961"]
[BlackElo "1995"]
[Annotator "NA RC"]
[PlyCount "136"]
[EventDate "2022.07.29"]
[EventType "team-tourn"]
[EventCountry "IND"]
[SourceTitle "playchess.com"]
[Source "ChessBase"]
[SourceQuality "1"]
[WhiteTeam "Jamaica"]
[BlackTeam "Bangladesh"]
[WhiteTeamCountry "JAM"]
[BlackTeamCountry "BAN"]
[TimeControl "40/5400+30:1800+30"]

1. e4 {[%emt 0:00:05]} e5 {[%emt 0:00:06]} 2. Nf3 {[%emt 0:00:17]} Nf6 {[%emt 0:00:09]} 3. Nc3 {[%emt 0:00:30]} Nc6 {[%emt 0:00:19]} 4. Bb5 {[%emt 0:00:40]} Bc5 {[%emt 0:01:20]} 5. O-O {[%emt 0:03:03]} d6 {[%emt 0:18:25]} 6. d3 {[%emt 0:03:04]} Bg4 {[%emt 0:13:05]} 7. Na4 {[%emt 0:01:09]} Bb6 {[%emt 0:02:00]} 8. Nxb6 {[%emt 0:01:03]} axb6 {[%emt 0:01:01]} 9. c3 {[%emt 0:06:32]} h6 {[%emt 0:04:30]} 10. Re1 {[%emt 0:05:32]} O-O {[%emt 0:02:54]} 11. h3 {[%emt 0:01:38]} Bh5 {[%emt 0:01:48]} 12. g4 {[%emt 0:01:51]} Bg6 {[%emt 0:01:00]} 13. Nh4 {[%emt 0:01:31]} Nh7 {[%emt 0:06:01]} 14. Ng2 {[%emt 0:09:35]} Ng5 {[%emt 0:09:05]} 15. Re3 {[%emt 0:05:14]} Ne6 {[%emt 0:01:02]} 16. Rg3 {[%emt 0:00:45]} Ne7 {[%emt 0:06:56]} 17. Qf3 {[%emt 0:19:24]} d5 {[%emt 0:03:49]} 18. exd5 {[%emt 0:04:57]} Qxd5 {[%emt 0:00:16]} 19. Qxd5 {[%emt 0:00:29]} Nxd5 {[%emt 0:00:03]} 20. Nh4 {[%emt 0:04:45]} Nef4 {[%emt 0:03:27]} 21. d4 {[%emt 0:08:53]} exd4 {[%emt 0:06:17]} 22. Bxf4 {[%emt 0:06:21]} Nxf4 {[%emt 0:00:03]} 23. Rf3 {[%emt 0:03:00]} dxc3 {[%emt 0:01:57]} 24. bxc3 {[%emt 0:00:37]} Nd5 {[%emt 0:02:15]} 25. Nxg6 {[%emt 0:02:47]} fxg6 {[%emt 0:00:02]} 26. Bc4 {[%emt 0:00:11]} Rxf3 {[%emt 0:08:43]} 27. Bxd5+ {[%emt 0:00:06]} Rf7 {[%emt 0:00:01]} 28. Rd1 {[%emt 0:00:29]} Re8 {[%emt 0:00:34]} 29. Kg2 {[%emt 0:02:56]} Re2 {[%emt 0:01:29]} 30. Bxf7+ {[%emt 0:02:48]} Kxf7 {[%emt 0:00:09]} 31. Rd7+ {[%emt 0:00:08]} Re7 {[%emt 0:00:03]} 32. Rxe7+ {[%emt 0:02:50]} Kxe7 {[%emt 0:00:01]} 33. Kf3 {[%emt 0:00:05]} b5 {[%emt 0:02:43]} 34. Ke3 {[%emt 0:00:16]} g5 {[%emt 0:00:32]} 35. f4 {[%emt 0:02:02]} gxf4+ {[%emt 0:00:03]} 36. Kxf4 {[%emt 0:00:05]} Ke6 {[%emt 0:00:49]} 37. Ke4 {[%emt 0:01:02]} g6 {[%emt 0:01:32]} 38. Kd4 {[%emt 0:00:44]} b6 {[%emt 0:01:04]} 39. Ke4 {[%emt 0:00:28]} c6 {[%emt 0:01:59]} 40. Kd4 {[%emt 0:00:25]} Kf6 {[%emt 0:00:29]} 41. Ke4 {[%emt 0:06:21]} Kg5 {[%emt 0:12:50]} 42. Kf3 {[%emt 0:00:06]} Kh4 {[%emt 0:05:46]} 43. Kg2 {[%emt 0:00:06]} c5 {[%emt 0:01:27]} 44. a3 {[%emt 0:00:19]} h5 {[%emt 0:05:45]} 45. gxh5 {[%emt 0:00:29]} gxh5 {[%emt 0:00:27]} 46. Kh2 {[%emt 0:00:16]} Kg5 {[%emt 0:00:05]} 47. Kg3 {[%emt 0:01:38]} Kf5 {[%emt 0:03:36]} 48. Kh4 {[%emt 0:06:40]} Kg6 {[%emt 0:00:11]} 49. Kg3 {[%emt 0:00:40]} Kg5 {[%emt 0:00:02]} 50. Kf3 {[%emt 0:14:10]} Kf5 {[%emt 0:00:13]} 51. Ke3 {[%emt 0:01:06]} h4 {[%emt 0:01:27]} 52. Kf3 {[%emt 0:00:32]} Ke5 {[%emt 0:00:02]} 53. Ke3 {[%emt 0:02:18]} Kd5 {[%emt 0:00:11]} 54. Kd3 {[%emt 0:00:06]} b4 {[%emt 0:01:53]} 55. axb4 {[%emt 0:02:32]} cxb4 {[%emt 0:00:06]} 56. cxb4 {[%emt 0:00:14]} b5 {[%emt 0:00:08]} 57. Ke3 {[%emt 0:00:33]} Kc4 {[%emt 0:00:03]} 58. Kf4 {[%emt 0:00:07]} Kxb4 {[%emt 0:00:03]} 59. Kg4 {[%emt 0:00:04]} Kc5 {[%emt 0:00:45]} 60. Kxh4 {[%emt 0:00:37]} b4 {[%emt 0:00:01]} 61. Kg5 {[%emt 0:00:21]} b3 {[%emt 0:00:04]} 62. h4 {[%emt 0:00:05]} b2 {[%emt 0:00:02]} 63. h5 {[%emt 0:00:07]} b1=Q {[%emt 0:00:07]} 64. h6 {[%emt 0:00:06]} Qh7 {[%emt 0:00:09]} 65. Kh5 {[%emt 0:00:06]} Kd5 {[%emt 0:00:05]} 66. Kg5 {[%emt 0:00:04]} Ke5 {[%emt 0:00:05]} 67. Kh5 {[%emt 0:00:09]} Kf4 {[%emt 0:00:16]} 68. Kh4 {[%emt 0:00:11]} Qxh6# {[%emt 0:00:02]} 0-1

[Event "44th Chess Olympiad Women 2022"]
[Site "Chennai"]
[Date "2022.08.02"]
[Round "5.38"]
[White "Talukder, Umme Taslima Protiva"]
[Black "Watson, Gabriella"]
[Result "1-0"]
[ECO "D35"]
[WhiteElo "1769"]
[BlackElo "1164"]
[Annotator "NA RC COMBH"]
[PlyCount "133"]
[EventDate "2022.07.29"]
[EventType "team-tourn"]
[EventCountry "IND"]
[SourceTitle "playchess.com"]
[Source "ChessBase"]
[SourceQuality "1"]
[WhiteTeam "Bangladesh"]
[BlackTeam "Jamaica"]
[WhiteTeamCountry "BAN"]
[BlackTeamCountry "JAM"]
[TimeControl "40/5400+30:1800+30"]

1. d4 {[%emt 0:00:00]} d5 {[%emt 0:00:00]} 2. c4 {[%emt 0:00:00]} c6 {[%emt 0:00:00]} 3. Nc3 {[%emt 0:00:02]} Nf6 {[%emt 0:00:00]} 4. Nf3 {[%emt 0:00:41]} e6 {[%emt 0:00:09]} 5. Bg5 {[%emt 0:00:19]} Be7 {[%emt 0:00:32]} 6. e3 {[%emt 0:00:17]} O-O {[%emt 0:00:45]} 7. cxd5 {[%emt 0:00:20]} exd5 {[%emt 0:00:17]} 8. Bd3 {[%emt 0:00:08]} h6 {[%emt 0:00:56]} 9. Bh4 {[%emt 0:00:43]} Ne4 {[%emt 0:02:23]} 10. Bxe7 {[%emt 0:03:23]} Qxe7 {[%emt 0:00:12]} 11. Qc2 {[%emt 0:01:21]} Bf5 {[%emt 0:04:12]} 12. Ne5 {[%emt 0:06:40]} f6 {[%emt 0:09:47]} 13. Nf3 {[%emt 0:00:51]} Nd7 {[%emt 0:01:11]} 14. O-O {[%emt 0:00:23]} Bh7 {[%emt 0:06:37]} 15. Rae1 {[%emt 0:03:50]} Rfe8 {[%emt 0:03:50]} 16. Nd2 {[%emt 0:03:27]} f5 {[%emt 0:04:56]} 17. f3 {[%emt 0:02:11]} Nxd2 {[%emt 0:09:12]} 18. Qxd2 {[%emt 0:06:57]} Qg5 {[%emt 0:01:09]} 19. Qf2 {[%emt 0:04:54]} Nf6 {[%emt 0:11:13]} 20. h4 {[%emt 0:04:27]} Qh5 {[%emt 0:03:12]} 21. Ne2 {[%emt 0:03:37]} Qf7 {[%emt 0:06:59]} 22. Ng3 {[%emt 0:05:06]} Qd7 {[%emt 0:00:50]} 23. Qc2 {[%emt 0:02:14]} f4 {[%emt 0:06:48]} 24. exf4 {[%emt 0:04:19]} Qd6 {[%emt 0:01:03]} 25. Re5 {[%emt 0:03:22]} Rf8 {[%emt 0:07:21]} 26. Bxh7+ {[%emt 0:09:06]} Nxh7 {[%emt 0:00:12]} 27. Ne2 {[%emt 0:03:08]} Nf6 {[%emt 0:03:29]} 28. g3 {[%emt 0:01:45]} Nd7 {[%emt 0:02:28]} 29. Re3 {[%emt 0:01:15]} Rae8 {[%emt 0:00:43]} 30. Qd2 {[%emt 0:01:57]} Qg6 {[%emt 0:01:26]} 31. Kf2 {[%emt 0:01:40]} Nb6 {[%emt 0:01:39]} 32. b3 {[%emt 0:01:39]} Rxe3 {[%emt 0:01:37]} 33. Qxe3 {[%emt 0:03:07]} Re8 {[%emt 0:00:19]} 34. Qd2 {[%emt 0:00:54]} Qe6 {[%emt 0:00:43]} 35. Ng1 {[%emt 0:00:54]} Qf6 {[%emt 0:00:37]} 36. Re1 {[%emt 0:01:17]} Rxe1 {[%emt 0:00:40]} 37. Kxe1 {[%emt 0:00:05]} Qf5 {[%emt 0:01:05]} 38. Kf2 {[%emt 0:02:53]} Nd7 {[%emt 0:00:40]} 39. g4 {[%emt 0:01:59]} Qf6 {[%emt 0:00:48]} 40. Kg3 {[%emt 0:01:14]} Qg6 {[%emt 0:02:02]} 41. f5 {[%emt 0:31:59]} Qd6+ {[%emt 0:30:39]} 42. Kh3 {[%emt 0:02:15]} c5 {[%emt 0:05:00]} 43. Ne2 {[%emt 0:05:00]} c4 {[%emt 0:01:02]} 44. Qe3 {[%emt 0:01:51]} Kf7 {[%emt 0:01:11]} 45. f4 {[%emt 0:02:25]} Nf6 {[%emt 0:00:47]} 46. Ng3 {[%emt 0:01:16]} Qa3 {[%emt 0:01:54]} 47. g5 {[%emt 0:02:02]} hxg5 {[%emt 0:00:49]} 48. fxg5 {[%emt 0:00:08]} Ne8 {[%emt 0:00:14]} 49. Qe6+ {[%emt 0:00:19]} Kf8 {[%emt 0:00:25]} 50. g6 {[%emt 0:00:38]} Qe7 {[%emt 0:00:27]} 51. Qxd5 {[%emt 0:01:34]} c3 {[%emt 0:00:00]} 52. Qc4 {[%emt 0:00:00]} Qc7 {[%emt 0:00:00]} 53. Qb4+ {[%emt 0:00:00]} Kg8 {[%emt 0:00:00]} 54. Ne2 {[%emt 0:00:00]} c2 {[%emt 0:00:00]} 55. Qc5 {[%emt 0:00:00]} Qd7 {[%emt 0:00:00]} 56. Qxc2 {[%emt 0:00:00]} Qe7 {[%emt 0:00:00]} 57. Qd3 {[%emt 0:00:00]} Nf6 {[%emt 0:00:00]} 58. Ng3 {[%emt 0:00:00]} Nd5 {[%emt 0:00:00]} 59. Qc4 {[%emt 0:00:00]} Qd7 {[%emt 0:00:00]} 60. a4 {[%emt 0:00:00]} Kf8 {[%emt 0:00:00]} 61. Qc5+ {[%emt 0:00:00]} Ke8 {[%emt 0:00:00]} 62. Qc1 {[%emt 0:00:00]} Nf6 {[%emt 0:00:00]} 63. Qe1+ {[%emt 0:00:00]} Kd8 {[%emt 0:00:00]} 64. Qe5 {[%emt 0:00:00]} b6 {[%emt 0:00:00]} 65. h5 {[%emt 0:00:51]} Qc6 {[%emt 0:00:00]} 66. Qf4 {[%emt 0:02:04]} Qd5 {[%emt 0:00:00]} 67. Qb8+ {[%emt 0:00:48]} 1-0

[Event "44th Chess Olympiad Women 2022"]
[Site "Chennai"]
[Date "2022.08.02"]
[Round "5.38"]
[White "Curwin, Nickaylah"]
[Black "Jannatul, Ferdous"]
[Result "0-1"]
[ECO "D02"]
[WhiteElo "1499"]
[BlackElo "1815"]
[Annotator "NA RC COMBH"]
[PlyCount "72"]
[EventDate "2022.07.29"]
[EventType "team-tourn"]
[EventCountry "IND"]
[SourceTitle "playchess.com"]
[Source "ChessBase"]
[SourceQuality "1"]
[WhiteTeam "Jamaica"]
[BlackTeam "Bangladesh"]
[WhiteTeamCountry "JAM"]
[BlackTeamCountry "BAN"]
[TimeControl "40/5400+30:1800+30"]

1. d4 {[%emt 0:00:04]} d5 {[%emt 0:00:18]} 2. Bf4 {[%emt 0:00:06]} Nf6 {[%emt 0:00:07]} 3. e3 {[%emt 0:00:12]} e6 {[%emt 0:00:19]} 4. c3 {[%emt 0:00:30]} Bd6 {[%emt 0:00:00]} 5. Bg3 {[%emt 0:00:53]} O-O {[%emt 0:00:45]} 6. Bd3 {[%emt 0:00:14]} c5 {[%emt 0:00:20]} 7. Nf3 {[%emt 0:00:23]} Qc7 {[%emt 0:00:17]} 8. Nbd2 {[%emt 0:01:36]} Nbd7 {[%emt 0:00:24]} 9. O-O {[%emt 0:02:50]} Re8 {[%emt 0:03:10]} 10. Bxd6 {[%emt 0:01:25]} Qxd6 {[%emt 0:00:23]} 11. Qe2 {[%emt 0:08:15]} e5 {[%emt 0:18:58]} 12. dxe5 {[%emt 0:00:59]} Nxe5 {[%emt 0:00:45]} 13. Nxe5 {[%emt 0:00:30]} Qxe5 {[%emt 0:00:12]} 14. Nf3 {[%emt 0:02:02]} Qh5 {[%emt 0:00:45]} 15. h3 {[%emt 0:12:42]} Bd7 {[%emt 0:19:41]} 16. Rad1 {[%emt 0:07:21]} Rad8 {[%emt 0:02:06]} 17. Bb5 {[%emt 0:12:05]} a6 {[%emt 0:14:23]} 18. Bxd7 {[%emt 0:06:51]} Nxd7 {[%emt 0:00:20]} 19. Rfe1 {[%emt 0:08:05]} Ne5 {[%emt 0:02:14]} 20. Nxe5 {[%emt 0:01:16]} Qxe5 {[%emt 0:00:23]} 21. Qd3 {[%emt 0:08:01]} f5 {[%emt 0:08:11]} 22. g3 {[%emt 0:17:55]} Re6 {[%emt 0:04:45]} 23. f4 {[%emt 0:03:22]} Qf6 {[%emt 0:02:13]} 24. Qf1 {[%emt 0:01:51]} Re4 {[%emt 0:01:27]} 25. Rd3 {[%emt 0:00:55]} Qe6 {[%emt 0:01:31]} 26. Kf2 {[%emt 0:00:48]} Qb6 {[%emt 0:13:43]} 27. Re2 {[%emt 0:00:35]} d4 {[%emt 0:01:52]} 28. exd4 {[%emt 0:01:45]} cxd4 {[%emt 0:00:20]} 29. c4 {[%emt 0:00:27]} Rde8 {[%emt 0:01:15]} 30. Red2 {[%emt 0:00:38]} Re3 {[%emt 0:02:16]} 31. b3 {[%emt 0:00:33]} Qg6 {[%emt 0:01:24]} 32. Qg2 {[%emt 0:00:08]} Qe6 {[%emt 0:00:35]} 33. Qf1 {[%emt 0:01:09]} Qe4 {[%emt 0:00:16]} 34. Qg2 {[%emt 0:00:29]} Rxd3 {[%emt 0:00:19]} 35. Qxe4 {[%emt 0:00:31]} fxe4 {[%emt 0:00:22]} 36. Re2 {[%emt 0:00:33]} e3+ {[%emt 0:00:17]} 0-1

[Event "44th Chess Olympiad Women 2022"]
[Site "Chennai"]
[Date "2022.08.02"]
[Round "5.39"]
[White "Heredia Serrano, Carla"]
[Black "Wickramasinghe, Minethma Lasandi"]
[Result "1-0"]
[ECO "B51"]
[WhiteElo "2090"]
[BlackElo "1541"]
[Annotator "NA RC"]
[PlyCount "113"]
[EventDate "2022.07.29"]
[EventType "team-tourn"]
[EventCountry "IND"]
[SourceTitle "playchess.com"]
[Source "ChessBase"]
[SourceQuality "1"]
[WhiteTeam "Ecuador"]
[BlackTeam "Sri Lanka"]
[WhiteTeamCountry "ECU"]
[BlackTeamCountry "SRI"]
[TimeControl "40/5400+30:1800+30"]

1. e4 {[%emt 0:00:31]} c5 {[%emt 0:00:21]} 2. Nf3 {[%emt 0:00:33]} Nc6 {[%emt 0:00:16]} 3. Bb5 {[%emt 0:00:19]} d6 {[%emt 0:00:34]} 4. h3 {[%emt 0:02:53]} Bd7 {[%emt 0:04:18]} 5. O-O {[%emt 0:03:44]} a6 {[%emt 0:05:50]} 6. Bxc6 {[%emt 0:04:14]} Bxc6 {[%emt 0:00:22]} 7. Re1 {[%emt 0:01:50]} e5 {[%emt 0:07:04]} 8. c3 {[%emt 0:03:38]} Nf6 {[%emt 0:04:58]} 9. d4 {[%emt 0:00:07]} Qc7 {[%emt 0:07:19]} 10. Nbd2 {[%emt 0:15:52]} b5 {[%emt 0:06:08]} 11. a4 {[%emt 0:04:21]} Be7 {[%emt 0:04:58]} 12. d5 {[%emt 0:19:15]} Bb7 {[%emt 0:03:51]} 13. Qe2 {[%emt 0:00:30]} Qd7 {[%emt 0:07:00]} 14. Nf1 {[%emt 0:01:31]} h5 {[%emt 0:10:26]} 15. Ng3 {[%emt 0:03:22]} g6 {[%emt 0:06:52]} 16. Bg5 {[%emt 0:07:39]} h4 {[%emt 0:09:44]} 17. Bxf6 {[%emt 0:05:05]} Bxf6 {[%emt 0:00:08]} 18. Nf1 {[%emt 0:00:07]} Kf8 {[%emt 0:04:06]} 19. N1h2 {[%emt 0:02:00]} Kg7 {[%emt 0:00:40]} 20. Ng4 {[%emt 0:00:59]} Be7 {[%emt 0:00:33]} 21. Ne3 {[%emt 0:03:00]} f5 {[%emt 0:03:06]} 22. b3 {[%emt 0:10:28]} Rhf8 {[%emt 0:02:30]} 23. Nd2 {[%emt 0:01:03]} Bg5 {[%emt 0:01:50]} 24. axb5 {[%emt 0:01:51]} axb5 {[%emt 0:02:24]} 25. c4 {[%emt 0:00:34]} b4 {[%emt 0:01:44]} 26. Rxa8 {[%emt 0:00:50]} Rxa8 {[%emt 0:01:52]} 27. exf5 {[%emt 0:00:32]} Bxe3 {[%emt 0:01:18]} 28. fxe3 {[%emt 0:00:47]} Qxf5 {[%emt 0:03:03]} 29. Rf1 {[%emt 0:01:42]} Qd7 {[%emt 0:00:43]} 30. Ne4 {[%emt 0:01:46]} Qe7 {[%emt 0:00:43]} 31. Qb2 {[%emt 0:04:19]} Bc8 {[%emt 0:00:34]} 32. Ra1 {[%emt 0:00:14]} Rxa1+ {[%emt 0:00:18]} 33. Qxa1 {[%emt 0:00:01]} Bf5 {[%emt 0:00:10]} 34. Nd2 {[%emt 0:00:49]} Qg5 {[%emt 0:00:48]} 35. Qe1 {[%emt 0:00:31]} Bxh3 {[%emt 0:00:47]} 36. Qf2 {[%emt 0:00:15]} Bg4 {[%emt 0:00:30]} 37. Ne4 {[%emt 0:00:29]} Qe7 {[%emt 0:00:13]} 38. Kh2 {[%emt 0:00:57]} Bf5 {[%emt 0:00:18]} 39. Nd2 {[%emt 0:00:06]} g5 {[%emt 0:01:03]} 40. Qxf5 {[%emt 0:00:13]} Qd8 {[%emt 0:00:34]} 41. Ne4 {[%emt 0:30:17]} Qe7 {[%emt 0:02:09]} 42. Nxg5 {[%emt 0:00:00]} Kh6 {[%emt 0:01:21]} 43. Ne4 {[%emt 0:00:00]} Kg7 {[%emt 0:00:49]} 44. Qg5+ {[%emt 0:00:00]} Qxg5 {[%emt 0:00:06]} 45. Nxg5 {[%emt 0:00:00]} Kf6 {[%emt 0:00:10]} 46. Ne4+ {[%emt 0:00:00]} Ke7 {[%emt 0:00:04]} 47. Kh3 {[%emt 0:00:00]} Kd7 {[%emt 0:00:03]} 48. Kxh4 {[%emt 0:00:00]} Ke7 {[%emt 0:00:04]} 49. g4 {[%emt 0:00:00]} Kd7 {[%emt 0:00:03]} 50. g5 {[%emt 0:00:00]} Ke7 {[%emt 0:00:02]} 51. g6 {[%emt 0:00:00]} Kf8 {[%emt 0:00:05]} 52. Nxd6 {[%emt 0:00:00]} Kg7 {[%emt 0:00:03]} 53. Kg5 {[%emt 0:00:00]} Kg8 {[%emt 0:00:03]} 54. Nf5 {[%emt 0:00:00]} Kf8 {[%emt 0:00:07]} 55. d6 {[%emt 0:00:00]} Ke8 {[%emt 0:00:05]} 56. g7 {[%emt 0:00:00]} Kf7 {[%emt 0:00:05]} 57. d7 {[%emt 0:00:00]} 1-0